bitfinex/quotes_ETHUSD_20250705
["timestamp","ask_amount","ask_price","bid_price","bid_amount"]
[1751710292623,0.002,2524.0,2523.8,8.9463]
[1751710292791,0.37122554,2523.9,2523.8,8.9463]
[1751710293635,0.37122554,2523.9,2523.6,3.96352411]
[1751710293636,0.86962554,2523.9,2523.6,0.001]
[1751710293833,4.33354151,2523.8,2523.6,0.001]
[1751710294130,0.37122554,2523.7,2523.6,0.001]
[1751710295817,4.33366164,2523.7,2523.6,0.001]
[1751710297355,6.76506164,2523.7,2523.6,0.001]
[1751710297538,17.31506164,2523.7,2523.6,0.001]
[1751710297745,20.99569326,2523.7,2523.6,0.001]
[1751710302215,20.9951126,2523.7,2523.6,0.001]
[1751710303865,59.18390192,2523.7,2523.6,1e-08]
[1751710311148,0.55,2523.4,2523.3,1e-08]
[1751710311344,24.50676177,2523.4,2523.3,1e-08]
[1751710320061,24.00836177,2523.4,2523.3,1e-08]
[1751710320260,25.94136177,2523.4,2523.3,1e-08]
[1751710327690,25.9420582,2523.4,2523.3,1e-08]
[1751710330482,25.94212944,2523.4,2523.3,1e-08]
[1751710339396,25.39212944,2523.4,2523.3,1e-08]
[1751710343234,25.39237265,2523.4,2523.3,1e-08]
[1751710345333,25.39237791,2523.4,2523.3,1e-08]
[1751710348440,25.3924562,2523.4,2523.3,1e-08]
[1751710350227,25.9424562,2523.4,2523.3,1e-08]
[1751710351343,25.9425181,2523.4,2523.3,1e-08]
[1751710355223,15.9425181,2523.4,2523.3,1e-08]
[1751710363361,25.94256293,2523.4,2523.3,1e-08]
[1751710365142,25.9425811,2523.4,2523.3,1e-08]
[1751710366224,25.94259314,2523.4,2523.3,1e-08]
[1751710369268,25.57071689,2523.4,2523.3,1e-08]
[1751710369574,25.94263732,2523.4,2523.3,1e-08]
[1751710371871,23.8867744,2523.4,2523.3,1e-08]
[1751710383298,23.88694967,2523.4,2523.3,1e-08]
[1751710386314,23.88694686,2523.4,2523.3,1e-08]
[1751710389687,23.88694686,2523.4,2522.7,0.0429584]
[1751710389688,3.9632213,2523.2,2522.7,0.0429584]
[1751710389895,9.45662295,2523.0,2522.7,0.8434584]
[1751710390110,19.82871584,2523.0,2522.7,0.8434584]
[1751710392598,0.56969289,2523.0,2522.9,0.8205]
[1751710399692,0.56969289,2523.0,2522.9,4.78419257]
[1751710399888,0.37209289,2523.0,2522.9,5.66927191]
[1751710400791,0.37209289,2523.0,2522.9,5.86687191]
[1751710402326,0.37209289,2523.0,2522.9,13.84187191]
[1751710405626,0.1976,2523.5,2523.0,4.71398085]
[1751710405834,0.3712059,2523.4,2523.1,4.71394423]
[1751710405994,0.3712059,2523.3,2523.2,0.47139442]
[1751710406693,0.3712059,2523.3,2523.2,5.22484793]
[1751710406899,0.3712059,2523.3,2523.2,5.18521572]
[1751710407200,0.3712059,2523.3,2523.2,5.38281572]
[1751710409435,0.3712059,2523.3,2523.2,5.42244793]
[1751710409918,0.3708199,2523.6,2523.5,0.7619]
[1751710410118,0.37081981,2523.6,2523.5,8.7359]
[1751710412843,0.37062552,2523.6,2523.5,8.7359]
[1751710414345,0.37062552,2523.6,2523.5,8.7349]
[1751710416449,0.37062552,2523.6,2523.5,0.7619]
[1751710416633,4.33328807,2523.6,2523.5,7.973]
[1751710416839,4.33328807,2523.6,2523.2,0.9662]
[1751710417049,0.37062552,2523.5,2523.3,7.973]
[1751710417240,0.37062552,2523.4,2523.3,7.973]
[1751710417744,0.37062552,2523.6,2523.3,7.973]
[1751710417949,0.37062552,2523.5,2523.2,4.92940118]
[1751710418151,0.37062552,2523.4,2523.3,7.973]
[1751710418816,0.37062552,2523.5,2523.3,7.973]
[1751710419041,3.96451584,2523.7,2523.3,7.973]
[1751710419042,0.37062552,2523.4,2523.3,7.973]
[1751710426362,0.37062552,2523.4,2523.3,11.93606424]
[1751710433571,0.37163056,2523.4,2523.3,11.93606424]
[1751710438143,0.37163056,2523.4,2523.3,13.62261106]
[1751710441172,0.37163056,2523.4,2523.3,14.37291106]
[1751710444680,0.37163056,2523.4,2523.3,14.37191106]
[1751710445080,0.37163056,2523.4,2523.2,4.16067633]
[1751710445290,0.37163056,2523.3,2523.2,4.16067633]
[1751710445586,0.37163056,2523.3,2523.2,12.13267633]
[1751710446083,0.37163056,2523.3,2523.2,11.9352213]
[1751710447779,0.37163056,2523.3,2523.2,7.972]
[1751710447955,0.37163056,2523.3,2523.2,11.9352213]
[1751710449586,0.37163056,2523.3,2523.2,7.972]
[1751710455361,0.37167845,2523.3,2523.2,7.972]
[1751710456488,4.33477852,2523.3,2523.2,7.972]
[1751710456693,5.78313986,2523.3,2523.2,7.972]
[1751710456859,5.78313986,2523.3,2522.9,3.98368963]
[1751710457060,0.37167845,2523.2,2523.0,7.972]
[1751710457295,0.37167845,2523.1,2523.0,7.972]
[1751710462346,0.37159774,2523.1,2523.0,7.972]
[1751710462652,0.37159774,2523.1,2523.0,11.93553547]
[1751710464041,0.37159774,2523.1,2523.0,12.71653547]
[1751710464346,0.37159774,2523.1,2523.0,14.1342689]
[1751710464645,0.37159774,2523.1,2523.0,14.3318689]
[1751710465429,0.002,2523.7,2523.5,3.96263453]
[1751710465632,0.002,2523.7,2523.6,7.972]
[1751710465918,0.37353129,2523.7,2523.6,7.972]
[1751710466117,0.37353129,2523.7,2523.6,11.93459312]
[1751710470863,0.002,2523.7,2523.6,11.93459312]
[1751710471038,0.37341796,2523.7,2523.6,11.93459312]
[1751710472549,0.37341796,2523.7,2523.6,7.972]
[1751710472914,0.37341796,2523.7,2523.6,7.971]
[1751710477052,0.37341796,2523.7,2523.6,11.93359312]
[1751710478866,0.37341796,2523.7,2523.6,7.971]
[1751710487568,0.37341796,2523.7,2523.6,11.93359312]
[1751710488182,0.37341796,2523.7,2523.6,7.971]
[1751710488400,0.37341796,2523.7,2523.6,11.93359312]
[1751710488583,0.37334221,2523.7,2523.6,11.93359312]
[1751710489685,0.37334221,2523.7,2523.6,7.971]
[1751710494690,0.37334221,2523.7,2523.6,11.93359312]
[1751710495186,0.37334221,2523.7,2523.6,7.971]
[1751710500488,0.37334221,2523.7,2523.6,7.97]
[1751710503684,0.37392321,2523.7,2523.6,7.97]
[1751710505900,0.37392332,2523.7,2523.6,7.97]
[1751710511505,0.37393065,2523.7,2523.6,7.97]
[1751710517013,0.37393065,2523.7,2523.5,3.96275004]
[1751710517202,0.002,2523.7,2523.6,7.97]
[1751710517397,0.37392873,2523.7,2523.6,7.97]
[1751710527502,0.37392873,2523.7,2523.6,11.93259312]
[1751710528824,0.37392873,2523.7,2523.6,7.97]
[1751710531012,0.37394588,2523.7,2523.6,11.93259312]
[1751710531213,0.37394587,2523.7,2523.6,11.93259312]
[1751710531630,0.37394587,2523.7,2523.6,12.68759312]
[1751710531936,0.37394587,2523.7,2523.6,14.35261946]
[1751710534359,0.37394587,2523.7,2523.6,12.68759312]
[1751710547059,0.37394587,2523.7,2523.6,12.88519312]
[1751710547954,0.37394587,2523.7,2523.6,0.1976]
[1751710548157,0.37394587,2523.7,2523.6,7.968]
[1751710554664,0.37371665,2523.7,2523.4,0.1976]
[1751710554866,0.37171665,2523.6,2523.5,7.968]
[1751710556462,0.37171665,2523.6,2523.0,2.17333343]
[1751710556463,4.33443989,2523.6,2523.0,2.17333343]
[1751710556667,0.37171665,2523.5,2523.2,0.1976]
[1751710556964,0.37171665,2523.4,2523.3,7.968]
[1751710560665,0.37167689,2523.4,2523.3,7.968]
[1751710561483,4.33462588,2523.4,2523.1,0.1976]
[1751710561654,0.37167689,2523.3,2523.2,7.968]
[1751710562244,0.37167689,2523.3,2523.2,11.9312213]
[1751710562445,0.37167689,2523.3,2523.2,7.968]
[1751710564576,0.37167689,2523.3,2523.2,11.9312213]
[1751710565545,0.37167689,2523.3,2523.2,13.54043959]
[1751710566943,0.37167689,2523.3,2523.2,14.29613959]
[1751710568279,0.37167689,2523.3,2523.2,14.49373959]
[1751710568774,0.37167689,2523.3,2523.2,6.52573959]
[1751710568948,0.37167689,2523.3,2523.2,14.49473959]
[1751710571375,0.5004,2523.7,2523.4,3.9628572]
[1751710571678,0.37150252,2523.6,2523.5,7.968]
[1751710574656,5.38619287,2523.6,2523.1,3.96326816]
[1751710574884,0.4984,2523.4,2523.2,7.968]
[1751710575078,0.37150252,2523.3,2523.2,7.968]
[1751710576091,0.37150252,2523.3,2523.2,11.9312213]
[1751710581690,0.37150252,2523.3,2523.2,7.968]
[1751710581880,0.37150252,2523.3,2523.2,11.9312213]
[1751710586195,0.37150252,2523.3,2523.2,13.62040875]
[1751710593813,0.37176939,2523.3,2523.2,13.62040875]
[1751710594407,0.37176939,2523.3,2523.2,11.9312213]
[1751710598113,0.37178751,2523.3,2523.2,11.9312213]
[1751710599809,0.37178751,2523.3,2523.2,7.968]
[1751710602509,0.37178751,2523.3,2523.2,11.9312213]
[1751710604519,0.37178751,2523.3,2523.2,7.968]
[1751710617149,0.37178751,2523.3,2523.2,11.9312213]
[1751710618565,0.37178751,2523.3,2523.2,7.968]
[1751710623356,0.37178751,2523.3,2523.2,11.9312213]
[1751710625460,0.37178751,2523.3,2523.2,7.968]
[1751710628531,0.87018751,2523.3,2522.9,0.02]
[1751710628731,4.16109624,2523.1,2522.9,0.02]
[1751710629072,6.35868518,2523.0,2522.9,0.02]
[1751710629565,10.32222065,2523.0,2522.9,0.02]
[1751710629884,0.87018751,2523.0,2522.9,0.02]
[1751710630037,4.83372298,2523.0,2522.9,0.02]
[1751710630237,6.45527313,2523.0,2522.9,0.02]
[1751710630545,11.9437708,2523.0,2522.9,0.02]
[1751710631992,21.9437708,2523.0,2522.9,0.02]
[1751710632264,22.4937708,2523.0,2522.9,0.02]
[1751710634078,22.78621475,2523.0,2522.9,0.02]
[1751710635372,22.41442724,2523.0,2522.9,0.02]
[1751710635575,22.78490539,2523.0,2522.9,0.02]
[1751710637040,30.75390539,2523.0,2522.9,0.02]
[1751710637270,30.9606799,2523.0,2522.9,0.02]
[1751710637570,60.9606799,2523.0,2522.9,0.02]
[1751710640041,30.9606799,2523.0,2522.9,0.02]
[1751710640459,22.9916799,2523.0,2522.9,0.02]
[1751710640743,32.8926799,2523.0,2522.9,0.02]
[1751710643951,22.9916799,2523.0,2522.9,0.02]
[1751710644167,32.8926799,2523.0,2522.9,0.02]
[1751710645478,62.8926799,2523.0,2522.9,0.02]
[1751710649091,24.9226799,2523.0,2522.9,0.02]
[1751710649961,19.43418223,2523.0,2522.9,0.02]
[1751710650289,19.06370408,2523.0,2522.9,0.02]
[1751710650489,24.92203369,2523.0,2522.9,0.02]
[1751710650667,16.66009207,2523.0,2522.9,0.02]
[1751710650867,24.07958974,2523.0,2522.9,0.02]
[1751710651759,26.14557592,2523.0,2522.9,0.02]
[1751710652579,24.21457592,2523.0,2522.9,0.02]
[1751710652889,26.14557592,2523.0,2522.9,0.02]
[1751710654178,26.14587064,2523.0,2522.9,0.02]
[1751710657297,26.69587064,2523.0,2522.9,0.02]
[1751710663889,26.19747064,2523.0,2522.9,0.02]
[1751710665378,24.26647064,2523.0,2522.9,0.02]
[1751710665574,34.16747064,2523.0,2522.9,0.02]
[1751710669892,24.26647064,2523.0,2522.9,0.02]
[1751710670102,33.61747064,2523.0,2522.9,0.02]
[1751710670311,14.54043664,2523.0,2522.9,0.02]
[1751710670574,0.56772666,2523.0,2522.9,0.8462]
[1751710680011,0.1976,2523.0,2522.9,0.8462]
[1751710680215,0.93961226,2523.0,2522.9,0.8462]
[1751710684216,0.93961226,2523.0,2522.9,4.80989257]
[1751710686129,0.93961226,2523.0,2522.9,1.73384275]
[1751710688832,0.74201226,2523.0,2522.9,5.69753532]
[1751710698020,0.74201226,2523.0,2522.9,5.73717224]
[1751710699318,0.74201226,2523.0,2522.9,5.89513532]
[1751710700126,0.74250759,2523.0,2522.9,5.89513532]
[1751710706235,0.74250759,2523.0,2522.9,13.86213532]
[1751710708164,0.37101181,2523.0,2522.9,13.86213532]
[1751710708377,0.74218336,2523.0,2522.9,13.86213532]
[1751710714390,0.74216346,2523.0,2522.9,13.86213532]
[1751710714864,0.74216322,2523.0,2522.9,13.86213532]
[1751710721480,0.74216322,2523.0,2522.9,13.03593532]
[1751710722210,0.74216322,2523.0,2522.9,0.2176]
[1751710722352,0.74216322,2523.0,2522.9,7.986]
[1751710723307,0.74216322,2523.0,2522.9,0.02]
[1751710723461,4.70569869,2523.0,2522.9,0.02]
[1751710723703,4.70569869,2523.0,2522.9,7.986]
[1751710723886,0.74216322,2523.0,2522.9,7.986]
[1751710724086,1.67886003,2523.0,2522.9,7.986]
[1751710724389,11.67886003,2523.0,2522.9,7.986]
[1751710724552,5.6423955,2523.0,2522.9,0.02]
[1751710724881,6.1407955,2523.0,2522.9,0.02]
[1751710725455,46.6907955,2523.0,2522.9,0.02]
[1751710725662,46.98853027,2523.0,2522.9,1e-08]
[1751710726001,47.19539488,2523.0,2522.9,1e-08]
[1751710729289,49.12539488,2523.0,2522.9,1e-08]
[1751710729604,56.67552864,2523.0,2522.9,1e-08]
[1751710732766,56.67399289,2523.0,2522.9,1e-08]
[1751710733172,57.10924506,2523.0,2522.9,1e-08]
[1751710733873,27.10924506,2523.0,2522.9,1e-08]
[1751710734074,57.10924506,2523.0,2522.9,1e-08]
[1751710734509,41.0484,2522.8,2522.7,0.0429584]
[1751710734670,53.36186535,2522.8,2522.7,0.0429584]
[1751710734977,45.38186535,2522.8,2522.7,0.0429584]
[1751710735186,55.29186535,2522.8,2522.7,0.0429584]
[1751710735797,45.38186535,2522.8,2522.7,0.0429584]
[1751710736009,26.54253673,2522.8,2522.7,0.0429584]
[1751710736471,16.63253673,2522.8,2522.7,0.0429584]
[1751710736682,26.54253673,2522.8,2522.7,0.0429584]
[1751710737300,18.56253673,2522.8,2522.7,0.0429584]
[1751710737614,18.01253673,2522.8,2522.7,0.0429584]
[1751710743489,18.01236154,2522.8,2522.7,0.0429584]
[1751710745028,18.56236154,2522.8,2522.7,0.0429584]
[1751710745438,48.56236154,2522.8,2522.7,0.0429584]
[1751710745997,56.54236154,2522.8,2522.7,0.0429584]
[1751710746728,56.54436154,2522.8,2522.7,0.0429584]
[1751710752022,56.55236154,2522.8,2522.7,0.0429584]
[1751710755328,16.63436154,2522.8,2522.7,0.00581486]
[1751710755530,16.13596154,2522.8,2522.7,0.00581486]
[1751710755736,18.07096154,2522.8,2522.7,0.00581486]
[1751710756236,17.52096154,2522.8,2522.7,0.00581486]
[1751710761128,17.15152107,2522.8,2522.7,0.00581486]
[1751710761433,4.33774684,2522.8,2522.7,0.00581486]
[1751710761741,16.27271471,2522.8,2522.7,0.00581486]
[1751710761935,12.30886502,2522.8,2522.7,0.00581486]
[1751710762238,12.50646502,2522.8,2522.7,0.77651486]
[1751710762639,10.57146502,2522.8,2522.7,0.77651486]
[1751710765613,10.1996,2522.8,2522.7,0.77651486]
[1751710765934,10.57108373,2522.8,2522.7,0.77651486]
[1751710766819,10.37348373,2522.8,2522.7,0.77651486]
[1751710769746,14.33733342,2522.8,2522.7,0.77651486]
[1751710770163,10.37348373,2522.8,2522.7,0.77651486]
[1751710771582,14.33733342,2522.8,2522.7,0.77651486]
[1751710772567,10.37348373,2522.8,2522.7,0.77651486]
[1751710774636,10.37310349,2522.8,2522.7,0.77651486]
[1751710779482,0.37310349,2522.8,2522.7,0.77651486]
[1751710779650,0.37310349,2522.8,2522.7,4.93812167]
[1751710783048,0.37310349,2522.8,2522.7,0.97411486]
[1751710783686,0.37310349,2522.8,2522.7,4.93812167]
[1751710788450,0.37310349,2522.8,2522.7,4.97776173]
[1751710788662,0.37310349,2522.8,2522.7,6.67425327]
[1751710790663,0.37310349,2522.8,2522.7,6.63461321]
[1751710793185,0.37310349,2522.8,2522.7,6.67425327]
[1751710796091,0.37310349,2522.8,2522.7,6.63461321]
[1751710798592,0.37310349,2522.8,2522.7,6.67425327]
[1751710799864,0.37310349,2522.8,2522.7,6.63461321]
[1751710800261,0.37310349,2522.8,2522.7,14.61061321]
[1751710800875,0.002,2522.8,2522.7,14.61061321]
[1751710801996,0.002,2522.8,2522.7,19.35061321]
[1751710802862,0.002,2522.8,2522.7,19.90061321]
[1751710803062,0.002,2522.8,2522.7,29.90061321]
[1751710804301,1e-08,2522.8,2522.7,29.90061321]
[1751710806787,1e-08,2523.1,2523.0,5.26493547]
[1751710806989,1e-08,2523.1,2523.0,21.7545831]
[1751710807171,1e-08,2523.1,2523.0,21.91254775]
[1751710807681,1e-08,2523.1,2523.0,26.65254775]
[1751710808817,1e-08,2523.1,2523.0,26.10254775]
[1751710809095,1e-08,2523.1,2523.0,26.65254775]
[1751710812410,0.37052497,2523.6,2523.5,3.96275014]
[1751710812707,0.002,2523.7,2523.6,3.96259312]
[1751710812892,0.002,2523.7,2523.6,4.16019312]
[1751710814704,0.002,2523.7,2523.6,4.97691905]
[1751710816284,0.002,2523.7,2523.6,10.26691905]
[1751710816481,0.002,2523.7,2523.6,10.22729312]
[1751710816723,0.002,2523.7,2523.6,13.63472645]
[1751710817213,0.002,2523.9,2523.8,4.7393791]
[1751710817414,0.002,2523.9,2523.8,35.59413565]
[1751710817415,1e-08,2523.9,2523.8,35.59413565]
[1751710817627,1e-08,2523.9,2523.8,35.75211286]
[1751710817788,1e-08,2523.9,2523.8,39.60100534]
[1751710820023,1e-08,2523.9,2523.8,32.05087158]
[1751710822737,1e-08,2523.9,2523.8,32.04987158]
[1751710824015,1e-08,2523.9,2523.8,31.49987158]
[1751710824207,1e-08,2523.9,2523.8,30.72277158]
[1751710827650,1e-08,2523.9,2523.8,22.74877158]
[1751710827814,1e-08,2523.9,2523.8,30.73277158]
[1751710828442,1e-08,2523.9,2523.8,25.99277158]
[1751710843017,1e-08,2523.9,2523.8,26.76257158]
[1751710848246,1e-08,2523.9,2523.8,27.31257158]
[1751710852055,1e-08,2523.9,2523.8,32.05257158]
[1751710860546,1e-08,2523.9,2523.8,32.05357158]
[1751710862567,1e-08,2524.3,2524.2,15.34205121]
[1751710862873,1e-08,2524.3,2524.2,30.86818497]
[1751710864642,1e-08,2524.3,2524.2,23.31805121]
[1751710866972,1e-08,2524.3,2524.2,28.05805121]
[1751710868182,1e-08,2524.3,2524.2,3.96165121]
[1751710868475,1e-08,2524.3,2524.2,11.94865121]
[1751710868871,1e-08,2524.3,2524.0,3.96192063]
[1751710868872,1e-08,2524.3,2524.1,3.96176031]
[1751710869050,0.4984,2524.2,2524.1,3.96176031]
[1751710869257,0.4984,2524.2,2524.1,11.94876031]
[1751710869452,0.4984,2524.2,2524.1,3.96176031]
[1751710869770,0.4984,2524.2,2524.1,11.94876031]
[1751710871675,0.86942673,2524.2,2524.1,11.94876031]
[1751710871876,0.86942674,2524.2,2524.1,11.94876031]
[1751710872573,0.86942674,2524.2,2524.1,12.14636031]
[1751710877291,0.4984,2524.2,2524.1,12.14636031]
[1751710877783,0.86941723,2524.2,2524.1,12.14636031]
[1751710880068,0.86941723,2524.2,2524.1,0.1976]
[1751710880287,0.86941723,2524.2,2524.1,8.1816]
[1751710880484,0.86941723,2524.2,2524.1,12.14340816]
[1751710881388,0.4984,2524.2,2524.1,12.14340816]
[1751710881586,0.86940016,2524.2,2524.1,12.14340816]
[1751710885264,0.4984,2524.2,2524.1,12.14340816]
[1751710885463,0.86936808,2524.2,2524.1,12.14340816]
[1751710887184,0.86936808,2524.2,2524.1,12.14140816]
[1751710889191,0.4984,2524.2,2524.1,12.14140816]
[1751710889395,0.86934092,2524.2,2524.1,12.14140816]
[1751710895183,0.86951529,2524.2,2524.1,12.14140816]
[1751710896310,0.86962755,2524.2,2524.1,12.14140816]
[1751710897307,0.86962755,2524.2,2524.1,4.15940816]
[1751710897624,0.37122755,2524.2,2524.1,12.13640816]
[1751710908725,0.37122755,2524.2,2524.1,4.15940816]
[1751710909020,0.37122755,2524.2,2524.1,12.13240816]
[1751710914221,1e-08,2524.3,2524.2,3.96165121]
[1751710914425,0.37178033,2524.3,2524.2,3.96165121]
[1751710916125,0.37178033,2524.3,2524.1,12.13233735]
[1751710916430,0.37178032,2524.2,2524.1,12.13233735]
[1751710917111,0.37178032,2524.2,2524.1,8.1706]
[1751710917429,1e-08,2524.3,2524.2,4.51165121]
[1751710917620,1e-08,2524.3,2524.2,5.30646772]
[1751710918316,1e-08,2524.3,2524.2,5.26685121]
[1751710918826,1e-08,2524.3,2524.2,15.30646772]
[1751710919022,1e-08,2524.3,2524.2,15.26685121]
[1751710919224,1e-08,2524.3,2524.2,18.99839559]
[1751710923240,1e-08,2524.3,2524.2,23.73839559]
[1751710924213,1e-08,2524.3,2524.2,31.16139559]
[1751710927026,1e-08,2524.3,2524.2,31.71139559]
[1751710942557,1e-08,2524.3,2524.2,23.73839559]
[1751710942733,1e-08,2524.3,2524.2,33.63939559]
[1751710943935,1e-08,2524.3,2524.2,23.73839559]
[1751710944134,1e-08,2524.3,2524.2,33.63939559]
[1751710948369,1e-08,2524.3,2524.2,23.73839559]
[1751710948533,1e-08,2524.3,2524.2,31.70639559]
[1751710950545,1e-08,2524.3,2524.2,30.95119559]
[1751710952035,1e-08,2524.3,2524.2,22.43319559]
[1751710952240,0.49840001,2524.3,2524.2,26.67165121]
[1751710952652,0.49840001,2524.3,2524.2,21.93165121]
[1751710955560,1e-08,2524.3,2524.2,21.93165121]
[1751710964969,1e-08,2524.3,2524.2,23.30735121]
[1751710965175,1e-08,2524.3,2524.2,26.64351118]
[1751710970399,1e-08,2524.3,2524.2,31.38351118]
[1751710982904,1e-08,2524.3,2524.2,23.41351118]
[1751710983088,1e-08,2524.3,2524.2,30.55581118]
[1751710996933,1e-08,2524.3,2524.2,31.35591118]
[1751710999637,1e-08,2524.3,2524.2,30.55581118]
[1751711002246,1e-08,2524.3,2524.2,22.03781118]
[1751711002539,1e-08,2524.3,2524.2,30.00581118]
[1751711002951,1e-08,2524.3,2524.2,22.03781118]
[1751711003148,1e-08,2524.3,2524.2,30.00581118]
[1751711004918,1e-08,2524.3,2524.2,31.35591118]
[1751711009148,1e-08,2524.3,2524.2,30.80591118]
[1751711010128,1e-08,2524.3,2524.2,31.35591118]
[1751711013036,1e-08,2524.3,2524.2,30.80591118]
[1751711014596,1e-08,2524.3,2524.2,31.35591118]
[1751711018974,1e-08,2524.3,2524.2,23.38791118]
[1751711019188,1e-08,2524.3,2524.2,33.28591118]
[1751711025153,0.0449584,2524.7,2524.6,4.51102352]
[1751711025477,0.41651822,2524.7,2524.6,8.70102352]
[1751711025668,0.41651822,2524.7,2524.6,8.89862352]
[1751711025869,0.41651822,2524.7,2524.6,16.86562352]
[1751711026879,0.41651822,2524.7,2524.6,8.89862352]
[1751711027571,0.41651822,2524.7,2524.6,16.86562352]
[1751711029583,0.41651822,2524.7,2524.6,12.12562352]
[1751711029782,7.96665198,2524.7,2523.7,4.74]
[1751711029973,0.4984,2524.5,2524.4,3.96133734]
[1751711030175,0.86995982,2524.5,2524.4,11.93633734]
[1751711034493,0.86995982,2524.5,2524.4,7.976]
[1751711036189,0.4984,2524.4,2524.1,3.96176082]
[1751711036358,0.37155982,2524.3,2524.2,7.976]
[1751711036858,0.86995982,2524.3,2524.2,7.976]
[1751711037558,0.86995982,2524.3,2524.2,11.93765121]
[1751711038179,0.86925419,2524.3,2524.2,11.93765121]
[1751711039892,0.86925419,2524.3,2524.2,12.13525121]
[1751711040287,0.37085419,2524.3,2524.2,12.13525121]
[1751711040494,0.4984,2524.5,2524.3,3.96149427]
[1751711040668,0.4984,2524.5,2524.4,7.976]
[1751711041000,0.86917121,2524.5,2524.4,7.976]
[1751711043198,0.86908831,2524.5,2524.4,7.976]
[1751711043508,0.86908831,2524.5,2524.3,3.96149427]
[1751711043701,0.4984,2524.5,2524.4,7.977]
[1751711043907,0.86907519,2524.5,2524.4,7.977]
[1751711044304,0.86907519,2524.5,2524.4,11.93833734]
[1751711045299,0.37067519,2524.5,2524.4,11.93833734]
[1751711045501,0.5433584,2524.7,2524.4,11.93833734]
[1751711045502,0.37060993,2524.6,2524.5,3.96118043]
[1751711045794,0.37060993,2524.6,2524.5,11.93818043]
[1751711047800,7.92074369,2524.6,2524.5,7.977]
[1751711048103,8.41914369,2524.6,2524.5,7.977]
[1751711048468,8.41914369,2524.6,2524.4,0.1976]
[1751711048672,9.29122218,2524.6,2524.5,7.979]
[1751711048870,9.66189667,2524.6,2524.5,7.979]
[1751711060425,9.66189667,2524.6,2524.5,7.976]
[1751711065412,9.66189667,2524.6,2524.5,7.976]
[1751711069521,0.37067449,2524.6,2524.5,11.93718043]
[1751711072538,0.0449584,2524.7,2524.5,11.93718043]
[1751711072723,0.37162686,2524.6,2524.5,11.93718043]
[1751711073242,0.37162686,2524.6,2524.5,7.976]
[1751711074642,0.37162686,2524.6,2524.5,11.93718043]
[1751711075942,0.37162567,2524.6,2524.5,11.93718043]
[1751711080747,0.37162567,2524.6,2524.5,7.976]
[1751711081250,0.37162567,2524.6,2524.3,4.15900587]
[1751711081449,7.92175943,2524.5,2524.3,4.15900587]
[1751711081623,0.37162567,2524.4,2524.3,4.15900587]
[1751711081824,0.37162567,2524.4,2524.3,12.13100587]
[1751711086753,0.37162567,2524.4,2524.3,8.1686]
[1751711087456,0.37162567,2524.4,2524.3,0.1976]
[1751711087627,0.37162567,2524.4,2524.3,8.1686]
[1751711088863,0.37162567,2524.4,2524.3,12.13009427]
[1751711089227,0.37162567,2524.4,2524.3,8.1686]
[1751711091258,0.37162567,2524.4,2524.3,0.1976]
[1751711091432,0.37162567,2524.4,2524.3,8.1676]
[1751711093760,5.85820819,2524.4,2524.3,8.1676]
[1751711098871,5.85820819,2524.4,2524.3,0.1976]
[1751711099189,7.33859747,2524.4,2524.3,7.97]
[1751711101265,6.3566406,2524.4,2524.3,7.97]
[1751711103690,5.8582406,2524.4,2524.3,7.97]
[1751711111584,5.8582406,2524.4,2524.1,3.96171943]
[1751711111758,0.37165808,2524.3,2524.2,7.97]
[1751711112166,0.37165808,2524.3,2524.2,11.93165121]
[1751711121590,0.37168493,2524.3,2524.2,11.93165121]
[1751711135086,0.37168493,2524.3,2524.2,7.97]
[1751711135278,0.37168493,2524.3,2524.2,11.93165121]
[1751711139102,0.37168493,2524.3,2524.2,7.97]
[1751711139273,0.37168493,2524.3,2524.2,11.93165121]
[1751711139473,0.37168493,2524.3,2524.2,7.97]
[1751711142114,0.37168493,2524.3,2524.2,11.93165121]
[1751711144526,0.37168493,2524.3,2524.2,7.97]
[1751711145333,0.3717971,2524.3,2524.2,7.97]
[1751711151124,5.48658252,2524.4,2524.2,7.97]
[1751711151411,0.37180072,2524.3,2524.2,7.97]
[1751711152316,1.87193689,2524.3,2524.2,7.969]
[1751711156711,5.83343116,2524.3,2524.2,7.969]
[1751711157429,5.83343116,2524.3,2524.0,0.1986]
[1751711157618,0.37180072,2524.2,2524.1,7.969]
[1751711157920,5.85838324,2524.2,2524.1,7.969]
[1751711164733,5.85838324,2524.2,2524.0,7.97]
[1751711164910,0.37180072,2524.1,2524.0,7.97]
[1751711166232,0.37180072,2524.1,2524.0,0.001]
[1751711166233,4.33360888,2524.1,2524.0,0.001]
[1751711166445,4.53120888,2524.1,2524.0,0.001]
[1751711167343,0.56940072,2524.1,2524.0,0.001]
[1751711167844,0.56889873,2524.1,2524.0,0.001]
[1751711170706,0.5688652,2524.1,2524.0,0.001]
[1751711174038,0.1976,2524.1,2524.0,0.001]
[1751711174252,0.56889714,2524.1,2524.0,0.001]
[1751711175041,0.37129714,2524.1,2524.0,3.96296513]
[1751711177346,0.37138304,2524.1,2524.0,3.96296513]
[1751711177724,0.37141899,2524.1,2524.0,3.96296513]
[1751711180251,0.37151927,2524.1,2524.0,3.96296513]
[1751711186042,0.37151927,2524.1,2524.0,0.001]
[1751711188746,11.56297186,2524.1,2524.0,0.001]
[1751711190815,11.76422674,2524.1,2524.0,0.001]
[1751711191028,11.56297186,2524.1,2524.0,0.001]
[1751711192137,21.56297186,2524.1,2524.0,0.001]
[1751711193345,16.07638934,2524.1,2524.0,0.001]
[1751711193548,18.00738934,2524.1,2524.0,0.001]
[1751711195958,25.55499658,2524.1,2524.0,0.001]
[1751711196329,25.55442209,2524.1,2524.0,0.001]
[1751711209474,25.55433758,2524.1,2524.0,0.001]
[1751711209663,25.55433652,2524.1,2524.0,0.001]
[1751711213949,25.55454411,2524.1,2524.0,0.001]
[1751711215774,23.49629615,2524.1,2524.0,0.001]
[1751711223386,23.4971094,2524.1,2524.0,0.001]
[1751711228202,28.98646868,2524.1,2524.0,0.001]
[1751711239807,23.4971094,2524.1,2524.0,0.001]
[1751711240632,28.98646868,2524.1,2524.0,0.001]
[1751711244104,28.98645797,2524.1,2524.0,0.001]
[1751711245834,23.49709869,2524.1,2524.0,0.001]
[1751711251017,22.99869869,2524.1,2524.0,0.001]
[1751711256553,22.99873362,2524.1,2524.0,0.001]